Cogmind - Beta 13 @@@ ROGUE MODE // 2024.03.09 @ 18:18:22 Player: Ferns Result: Destroyed by S-10 Pest with Light Assault Rifle Performance ------------- Evolutions (0) 0 Regions Visited (3) 600 Robots Destroyed (32) 160 Value Destroyed (857) 857 Prototype IDs (10) 200 Alien Tech Used (0) 0 Bonus (-17) -17 TOTAL SCORE: 1800 Bonus ------- Friendly Fire -17 Cogmind --------- Core Integrity 0/250 Matter 245/300 Energy 150/150 System Corruption 0% Temperature Cool (8) Movement Walking (410) Ox4 Location -10/Subcaves Parts ------- > --- POWER (1) -------- Light Angular Momentum Engine > --- PROPULSION (2) --- Cargo Legs > --- UTILITY (2+2) ---- Humpback (++) Signal Interpreter Light Armor Plating > --- WEAPON (2) ------- Subdweller Beam Cannon Subdweller Machine Gun > --- INVENTORY (35) --- Wheel Wheel Subdweller Monowheel Medium Storage Unit Large Matter Pod (150) Subdweller Optics Subdweller Machine Gun Subdweller Shrapnel Launcher Dirty Datajack (20) Multitool Peak State ------------ > --- POWER ------------ Light Angular Momentum Engine > --- PROPULSION ------- Cargo Legs > --- UTILITY ---------- Humpback Signal Interpreter Light Armor Plating > --- WEAPON ----------- Subdweller Beam Cannon Subdweller Machine Gun > --- INVENTORY -------- Wheel Wheel Subdweller Monowheel Medium Storage Unit Large Matter Pod Subdweller Optics Subdweller Machine Gun Subdweller Shrapnel Launcher Dirty Datajack Multitool [Rating: 31] Favorites ----------- Power Light Angular Momentum Engine Engine Light Angular Momentum Engine Propulsion Subdweller Monowheel Leg Cargo Legs Wheel Subdweller Monowheel Flight Unit Flight Unit Utility Medium Storage Unit Device Seismic Detector Storage Medium Storage Unit Processor Signal Interpreter Protection Hardened Light Armor Plating Weapon Subdweller Machine Gun Energy Gun Beam Rifle Energy Cannon Subdweller Beam Cannon Ballistic Gun Subdweller Machine Gun Ballistic Cannon Improved Light Cannon Launcher Subdweller Shrapnel Launcher Build | -11 -10 -10 -10 ------- Run | Yrd Mat Min Sub Slots Evolved . | . . . . Power . | . . . . Propulsion . | . . . . Utility . | . . . . Weapon . | . . . . Parts Attached 49 | 7 15 . 27 Power 5 | 1 2 . 2 Engine 5 | 1 2 . 2 Core . | . . . . Reactor . | . . . . Propulsion 17 | 2 4 . 11 Treads . | . . . . Leg 1 | . . . 1 Wheel 14 | 2 2 . 10 Hover . | . . . . Flight 2 | . 2 . . Utility 13 | 2 6 . 5 Device 4 | 2 2 . . Storage 3 | . 2 . 1 Processor 1 | . . . 1 Hackware . | . . . . Protection 5 | . 2 . 3 Artifact . | . . . . Weapon 14 | 2 3 . 9 Energy Gun 3 | 1 2 . . Energy Cannon 1 | . . . 1 Ballistic Gun 7 | 1 . . 6 Ballistic Cannon 2 | . 1 . 1 Launcher 1 | . . . 1 Special Weapon . | . . . . Impact Weapon . | . . . . Slashing Weapon . | . . . . Piercing Weapon . | . . . . Special Melee Weapon . | . . . . Unidentified Prototypes . | . . . . Parts Lost 7 | . 1 . 6 Power . | . . . . Propulsion 1 | . . . 1 Utility 3 | . 1 . 2 Weapon 3 | . . . 3 Highest Loss Streak 3 | . 1 . 3 To Critical Strikes . | . . . . Average Slot Usage (%) 88 | . 99 100 85 Engine 13 | . 14 14 12 Leg 3 | . . . 4 Wheel 19 | . 26 28 16 Device 3 | . 14 14 . Storage 12 | . 12 14 12 Processor 4 | . . . 5 Protection 4 | . 1 . 5 Energy Gun 3 | . 14 14 . Energy Cannon 4 | . . . 6 Ballistic Gun 14 | . 8 . 17 Ballistic Cannon 2 | . 5 14 . Naked Turns . | . . . . Heaviest Build 221 | 7 21 21 221 Greatest Support 55 | 20 20 20 55 Greatest Overweight (x) 4 | . 4 1 4 Average Overweight (x) . | . . 1 1 Largest Inventory Capacity 35 | 5 10 10 35 Average Capacity 16 | 5 8 10 19 Most Carried 11 | 5 10 10 11 Average Carried 9 | 1 7 10 10 Final Capacity 35 | 5 10 10 35 Final Carried 10 | 3 10 10 10 Class Distribution -------------------- 40% | Scavenger-Mutant 30% | Mutant 28% | Hauler-Mutant Dominant Class ---------------- Mutant | -10/Materials Mutant | -10/Mines Scavenger-Mutant | -10/Subcaves Resources | -11 -10 -10 -10 ----------- Run | Yrd Mat Min Sub Matter Collected 1270 | 275 195 117 683 Remotely . | . . . . Salvage Created 974 | 62 345 72 495 Parts 70 | 4 29 3 34 Haulers Intercepted 1 | . 1 . . Recyclers Shooed . | . . . . Parts Field Recycled . | . . . . Retrieved Matter . | . . . . Parts Self-Destructed 6 | . . . 6 Prevented . | . . . . Kills | -11 -10 -10 -10 ------- Run | Yrd Mat Min Sub Combat Hostiles Destroyed 25 | 1 6 3 15 Guns 21 | 1 6 3 11 Cannons 4 | . . . 4 Classes Destroyed 10 | 2 5 1 2 Worker 1 | . 1 . . Tunneler 1 | 1 . . . Hauler 1 | . 1 . . Recycler 2 | . 2 . . Watcher 2 | . 2 . . Swarmer 7 | . 6 . 1 Grunt 3 | 1 . 2 . Sentry 1 | . . . 1 Demolisher 1 | . . 1 . Subdweller 13 | . . . 13 Best Kill Streak 7 | 2 7 2 4 Combat Bots Only 4 | 1 3 2 4 Max Kills in Single Turn 2 | 1 2 1 1 Gunslinging 1 | . 1 . . Exploded . | . . . . Melee . | . . . . Uniques/NPCs Destroyed . | . . . . Combat | -11 -10 -10 -10 -------- Run | Yrd Mat Min Sub Hostile Shots Fired 148 | 3 42 3 100 Missed 41 | 2 15 1 23 Damage Taken 1828 | 10 225 76 1517 Core 252 | . 28 11 213 Absorbed by Shields . | . . . . Core Remaining (%) 100 | 100 . . . Volleys Fired 118 | 5 18 10 85 Largest 2 | 2 2 2 2 Hottest 110 | 60 95 95 110 Shots Fired 235 | 10 36 20 169 Gun 194 | 10 33 10 141 Cannon 41 | . 3 10 28 Launcher . | . . . . Special . | . . . . Kinetic 192 | 5 18 10 159 Thermal 43 | 5 18 10 10 Explosive . | . . . . Electromagnetic . | . . . . Robot Hit Streak 17 | 6 7 4 17 Robot Miss Streak 3 | 1 3 1 2 Penetration Max . | . . . . Secondary Targets 2 | . 1 . 1 Max Gunslinging Chain 1 | . 1 . 1 Shots Hit Robots 114 | 8 16 9 81 Core Hits 43 | 3 12 5 23 Critical Kills . | . . . . Critical Parts Destroyed . | . . . . Critical Strikes 2 | . . . 2 Destroy 1 | . . . 1 Blast 1 | . . . 1 Melee Attacks . | . . . . Impact . | . . . . Slashing . | . . . . Piercing . | . . . . Sneak Attacks . | . . . . Combat Hostiles . | . . . . Follow-up Attacks . | . . . . Damage Inflicted 1926 | 70 212 159 1485 Guns 1387 | 70 190 100 1027 Cannons 539 | . 22 59 458 Explosions . | . . . . Melee . | . . . . Ramming . | . . . . Kinetic 1448 | 28 66 59 1295 Thermal 478 | 42 146 100 190 Explosive . | . . . . Electromagnetic . | . . . . Impact . | . . . . Slashing . | . . . . Piercing . | . . . . Highest Corruption . | . . . . Average Corruption . | . . . . Corruption Purged . | . . . . Corruption Blocked . | . . . . Overload Shots . | . . . . Overflow Damage . | . . . . Projectiles . | . . . . Explosions . | . . . . Melee . | . . . . Knockbacks 8 | . . . 8 Impact . | . . . . Kinetic 7 | . . . 7 Secondary 1 | . . . 1 Self-Inflicted Damage . | . . . . Shots . | . . . . Rammed . | . . . . Targets Rammed . | . . . . Kicked . | . . . . Crushed . | . . . . Highest Temperature 232 | 46 232 111 28 Average Temperature 54 | 19 79 47 7 Received Heat Transfer 81 | 6 . 12 63 Siege Activations . | . . . . Robots Corrupted . | . . . . Combat Hostiles . | . . . . Parts Fried . | . . . . Impact Corruptions . | . . . . Robots Melted . | . . . . Combat Hostiles . | . . . . Parts Melted 2 | . 2 . . Heat Transferred 988 | 100 370 259 259 Parts Sabotaged . | . . . . Parts Stolen . | . . . . Parts Stripped . | . . . . Power Chain Reactions . | . . . . Alert | -11 -10 -10 -10 ------- Run | Yrd Mat Min Sub Peak Influence 185 | 25 185 81 . Initial 16 | . 16 10 . Average 55 | 7 61 55 . Maximum Alert Level . | . . . . Low Security (%) 100 | 100 100 100 . Level 1 . | . . . . Level 2 . | . . . . Level 3 . | . . . . Level 4 . | . . . . Level 5 . | . . . . High Security . | . . . . Max Security . | . . . . Squads Dispatched 1 | . 1 . . Investigation 1 | . 1 . . Extermination . | . . . . Reinforcement . | . . . . Assault . | . . . . Garrison . | . . . . Intercept . | . . . . Searches Triggered . | . . . . Construction Impeded . | . . . . Haulers Reinforced . | . . . . Active Scanning Responses . | . . . . Cargo Convoy Interrupts . | . . . . Stealth | -11 -10 -10 -10 --------- Run | Yrd Mat Min Sub Distress Signals . | . . . . Communications Jammed . | . . . . Distress Signals . | . . . . Times Spotted 35 | 1 9 3 22 Peak Tracking Total 6 | 1 4 2 6 Tactical Retreats 2 | . 1 . 1 Traps | -11 -10 -10 -10 ------- Run | Yrd Mat Min Sub Traps Triggered 1 | . 1 . . Indirectly . | . . . . Trap Hack Attempts . | . . . . Triggered . | . . . . Disarmed . | . . . . Reprogrammed . | . . . . Reused . | . . . . Traps Extracted . | . . . . Installed . | . . . . Triggered . | . . . . Machines | -11 -10 -10 -10 ---------- Run | Yrd Mat Min Sub Machines Disabled 1 | . . . 1 Max in Single Turn 1 | . . . 1 Machines Repaired . | . . . . Machines Dismantled . | . . . . Machines Sabotaged . | . . . . Overloaded Fab Kills . | . . . . Hacking | -11 -10 -10 -10 --------- Run | Yrd Mat Min Sub Machines Accessed 5 | . 3 . 2 Terminals 3 | . 3 . . Fabricators . | . . . . Repair Stations . | . . . . Recycling Units . | . . . . Scanalyzers . | . . . . Garrison Access . | . . . . Total Hacks 8 | . 4 . 4 Successful 5 | . 1 . 4 Failed 3 | . 3 . . Catastrophic 2 | . 2 . . Database Lockouts . | . . . . Manual 4 | . 1 . 3 Terminals 4 | . 4 . . Fabricators . | . . . . Repair Stations . | . . . . Recycling Units . | . . . . Scanalyzers . | . . . . Garrison Access . | . . . . Terminal Hacks 5 | . 1 . 4 Record 3 | . . . 3 Branch Access Points 1 | . 1 . . Derelict Proto ID Bank 1 | . . . 1 Fabricator Hacks . | . . . . Repair Station Hacks . | . . . . Recycling Unit Hacks . | . . . . Scanalyzer . | . . . . Garrison Access Hacks . | . . . . Unauthorized Hacks . | . . . . Terminals . | . . . . Fabricators . | . . . . Repair Stations . | . . . . Recycling Units . | . . . . Scanalyzers . | . . . . Garrison Access . | . . . . Data Cores Recovered . | . . . . Used . | . . . . Hacking Detections 2 | . 2 . . Full Trace Events 1 | . 1 . . Feedback Events . | . . . . Feedback Blocked . | . . . . Robot Schematics Acquired . | . . . . Robots Built . | . . . . Authchips . | . . . . Time . | . . . . Total Robot Build Rating . | . . . . Part Schematics Acquired . | . . . . Parts Built . | . . . . Authchips . | . . . . Time . | . . . . Total Part Build Rating . | . . . . Parts Repaired . | . . . . Time . | . . . . Parts Recycled . | . . . . Recycled Matter . | . . . . Retrieved Matter . | . . . . Retrieved Components . | . . . . Parts Scanalyzed . | . . . . Part Schematics Acquired . | . . . . Parts Damaged . | . . . . Bothacking | -11 -10 -10 -10 ------------ Run | Yrd Mat Min Sub Used RIF Installer . | . . . . Robots Hacked . | . . . . Non-combat . | . . . . Combat . | . . . . Robot Hacks Applied . | . . . . Relay Couplers Released . | . . . . Fabnet Peak Effective % . | . . . . Robots Rewired . | . . . . Allies Hacked . | . . . . Hacks Repelled . | . . . . Allies | -11 -10 -10 -10 -------- Run | Yrd Mat Min Sub Total Allies . | . . . . Largest Group . | . . . . Highest-Rated Group . | . . . . Highest-Rated Ally . | . . . . Total Orders . | . . . . Ally Attacks . | . . . . Total Damage . | . . . . Kills . | . . . . Allies Corrupted . | . . . . Allies Melted 1 | . . . 1 Intel | -11 -10 -10 -10 ------- Run | Yrd Mat Min Sub Robot Analysis Total . | . . . . Derelict Logs Recovered 3 | . . 2 1 Drone Launches . | . . . . Drone Recoveries . | . . . . Exploration | -11 -10 -10 -10 ------------- Run | Yrd Mat Min Sub Turns Passed 3449 | 85 617 234 2513 Spaces Moved 2148 | 86 566 190 1306 Core 47 | 47 . . . Treads . | . . . . Legs 231 | . . . 231 Wheels 1868 | 39 564 190 1075 Hover . | . . . . Flight 2 | . 2 . . Fastest Speed 50 | 50 80 95 80 Average Speed 132 | 63 85 95 163 Slowest Speed 410 | 80 360 95 410 Overloaded Moves . | . . . . Propulsion Burnouts . | . . . . Robots Hopped . | . . . . Cave-ins Triggered . | . . . . Exploration Rate (%) 50 | 7 67 49 80 Regions Visited 3 Branch Regions 2 Pre-discovered Areas 1 | . . 1 . Known Exits Taken 2 | . 1 1 . Unknown Exits Taken 1 | 1 . . . Scrap Searched 5 | . . . 5 Spaces Dug . | . . . . Terrain Destroyed 5 | . . 3 2 Melee . | . . . . Projectile 5 | . . 3 2 AOE . | . . . . Terrain Rammed . | . . . . Walls Destroyed . | . . . . Machines Disabled . | . . . . Actions | -11 -10 -10 -10 --------- Run | Yrd Mat Min Sub Total 2533 | 107 672 223 1531 Wait 96 | . 30 24 42 Move 2145 | 85 565 189 1306 Hop . | . . . . Pick Up 74 | 10 26 . 38 Fast Attach . | . . . . Attach 21 | 7 4 . 10 Detach 1 | . . . 1 Swap 28 | . 11 . 17 Drop 50 | . 18 . 32 Fire 118 | 5 18 10 85 Melee . | . . . . Ram . | . . . . Kick . | . . . . Crush . | . . . . Escape Stasis . | . . . . Rewire . | . . . . Trap . | . . . . Miscellaneous . | . . . . Route ------- -11/Scrapyard -10/Materials (discovered 5 exits: [*Mat x3] / *Min x2) -10/Mines (discovered 3 exits: [*Mat x2] / *Sub) -10/Subcaves (discovered 1 exit: *Mat) History --------- Turn | Location | Event 2 | -11/Scrapyard | Met Revision 17 50 | -11/Scrapyard | Discovered new exit (range 8) 86 | -11/Scrapyard | Entered Materials 317 | -10/Materials | Build established: Mutant 434 | -10/Materials | Discovered new exit (range 14) 435 | -10/Materials | Discovered new exit (range 12) 476 | -10/Materials | Identified exit to Mines 492 | -10/Materials | Discovered new exit (range 8) 537 | -10/Materials | Discovered new exit (range 13) 703 | -10/Materials | Entered Mines 729 | -10/Mines | Assembled infested the area 732 | -10/Mines | Met a Derelict bent on vengeance 734 | -10/Mines | Assisted by a Guerilla fighting off Assembled 753 | -10/Mines | Discovered new exit (range 14) 851 | -10/Mines | Identified exit to Subcaves 865 | -10/Mines | Discovered new exit (range 16) 937 | -10/Mines | Entered Subcaves 974 | -10/Subcaves | Disturbed a concealed Subdweller 990 | -10/Subcaves | Ambushed by swarm of Subdwellers 1036 | -10/Subcaves | Lost 3 allies 1353 | -10/Subcaves | Build established: Scavenger-Mutant 1461 | -10/Subcaves | Core integrity fell below 50% 1536 | -10/Subcaves | Learned location of 1 exit from Materials 1908 | -10/Subcaves | A swath of the cavern ceiling suddenly collapsed 1967 | -10/Subcaves | Visited Clippyterm 1970 | -10/Subcaves | Learned Factory emergency access door positions 2062 | -10/Subcaves | Disturbed a concealed Subdweller 2063 | -10/Subcaves | Ambushed by Subdweller buried in earth 2072 | -10/Subcaves | Core integrity fell below 20% 2088 | -10/Subcaves | Ambushed by Subdweller buried in earth 2127 | -10/Subcaves | Lost 3 parts (1u2w) 2166 | -10/Subcaves | Discovered new exit (range 14) 2270 | -10/Subcaves | Identified exit to Materials 2452 | -10/Subcaves | Visited 4L-MR0's lab 2467 | -10/Subcaves | Found Cargo Legs 2470 | -10/Subcaves | Attached Cargo Legs, gained temporary slots: Utility x2 2758 | -10/Subcaves | Build established: Hauler-Mutant 3115 | -10/Subcaves | A swath of the cavern ceiling suddenly collapsed 3450 | -10/Subcaves | Destroyed by S-10 Pest with Light Assault Rifle Last Messages --------------- Core temporarily expanded with Utility slot. Note that some effects don't stack, e.g. attaching both Humpback and Med. Storage Unit does not combine the two effects (all such effects are marked ). 4L-MR0 mumbles: "Who knows where that last prototype ended up, probably tossed aside somewhere as if it were useless junk..." Acquired Sub. Monowheel. [Achievement: Tank] Acquired Multitool. Acquired Sub. Shrapnel Launcher. Acquired Wheel. Q3-YD7(z): "She is not going to be happy we haven't found any suitable candidates yet." A swath of the cavern ceiling suddenly collapses. S-10 Pest springs to life. S-10 Pest destroyed. Map ----- +----------------------------------------------------+ | #??????????????????????????????????????????? | | #??????????????????????????????????????????? | | ## ##?????????????????????????????????????????? | | ## #?????????????????????????????????????????? | | # ##????###????????####??????????????????????? | | ##????## #???????## ##?????????????????????? | | ##?????# #??????## #?????????????????????? | | ####??## ##????## #?????????????????????? | | ##?# ###### ###?????????????????????? | | ### ##???????????????????????? | | ##????????????????????????? | | ##### ##?????????????????????????? | | ##???## ##??????????????????????????? | | # ###?????###???????????????????????????? | | # ##??##????##???????????????????????????? | | ##### #????? "?###??????????????????????? | | #?# #????? ## ??????????????????????? | | ### #??????? # ??? ?????????????????? | | # #??????? ??? ?????????????????? | | ## #????????? ?? #????????????????? | | #### "# #????????? ?? ????????????????? | | ??# ### ##?????????? #??# #????????????????? | | #?# ####?????????????? #??# #????????????????? | | ## ##?####??????????## ##?# #????????????????? | | #?# ##??#####??#ss%### ##???????????????? | | #" ### #??# ####@= ## #???????????????? | | #"# # # ##### ## s # #???????????????? | | "#""# ## ### #????????????????? | | ##"### ##?# ## #????????????????? | | #"=#"### ### #??# ## ##???????????????? | | #"""#?## # ##?# #???????????????? | | ""###?# #### #???????????????? | | "##???#### # #### ########???????## | | "#???????#### #### ####### ## | | "#?????????## ### | | "#?????????# && !![ ## % | | "#####?????# & ! & & "## ### ## # | | #"# ##????## & [ = ### ##?## ###### | | ### ####??#### ] & ######## #?# | | #?# ##???## ##??# ### | | ??# [! #?### ### #???## ## # | | ??# ## #### #?# #????# ###?# ### | | ?## ## ### ##?# #????# #?#####?## | | ## ## ## ##??# ##????# ### ###### | | # ## #??? ##?##### ## ## | | ### #??? ####??#% | | ## #??# #????# | | ### ## #???# ## # #### | | ###### ##???# #######??# | | #????# ####????# ### ####????????# | +----------------------------------------------------+ Best States ------------- Heat Dissipation 25 Energy Generation 18 Energy Capacity 200 Matter Stores 300 Matter Capacity 300 Sight Range 16 Robot Scan Range 14 Terrain Scan Range 16 Terrain Scan Density 10 Armor Coverage 150 Evasion (%) 50 Item Schematics ----------------- None Robot Schematics ------------------ None Fabricated ------------ Nothing Alien Tech Used ----------------- None Achievements -------------- Tank Challenges ------------ None Game ------ Seed CoordinationSubatomicArchive Manual? 0 Play Time 00:26:50 Cumulative 2.3 hours Start 2024.03.09 @ 17:51:03 End 2024.03.09 @ 18:18:22 Sessions 1 Manual Loads 0 Difficulty Rogue Special Mode None Game No. 2 Rogue 1 Adventurer 1 Explorer 0 Win Type - Total 0 Types 0/0/0/0/0/0/0/0/0 Lore% 4 Gallery% 8 Achievement% 10 Wizard Run 0 Options --------- Layout 2 ASCII 0 Keyboard 0 Movement Mouse Keybinds 0 Fullscreen 2 Font 32/SmallcapsGlow Map View 50x44 Zoom Use 0% Tactical HUD 0 Map Filters NONE Filters NONE Steam 1 RUN: 741da5c9-92ed-4dda-a18c-9c54b782af02